bitfinex-derivatives/quotes_SOLF0:USTF0_20241024
["timestamp","ask_amount","ask_price","bid_price","bid_amount"]
[1729775995409,2.8611,174.91,174.86,2.8617]
[1729775996110,4.4,174.9,174.86,2.8617]
[1729775996511,4.4,174.9,174.82,1.2688]
[1729775997098,4.4,174.9,174.82,2.4987]
[1729775998001,4.4,174.9,174.86,2.8617]
[1729775998610,2.861,174.91,174.82,2.4987]
[1729775998810,7.261,174.91,174.87,2.8616]
[1729775999904,2.8613,174.9,174.85,2.8619]
[1729776000100,10.99111542,174.9,174.82,2.4987]
[1729776000810,10.99111542,174.87,174.75,16.71831542]
[1729776001011,15.37111542,174.87,174.76,6.99613538]
[1729776001221,15.37111542,174.87,174.77,1.43133538]
[1729776001407,2.8619,174.86,174.82,2.8625]
[1729776001807,15.37111542,174.87,174.82,2.8625]
[1729776002012,2.8618,174.86,174.82,2.8625]
[1729776002406,15.37111542,174.87,174.77,1.43133538]
[1729776002608,2.8624,174.83,174.79,2.8629]
[1729776003519,2.8624,174.83,174.76,1.1848]
[1729776003704,7.2424,174.83,174.76,1.1848]
[1729776004324,7.2424,174.83,174.78,2.8631]
[1729776004815,7.2424,174.83,174.79,2.8629]
[1729776005026,7.2419,174.86,174.76,1.1848]
[1729776005214,7.2419,174.86,174.76,2.61648996]
[1729776005416,4.38,174.86,174.81,2.8625]
[1729776005613,4.38,174.86,174.76,2.61648996]
[1729776006321,4.38,174.86,174.77,10.99111542]
[1729776006617,4.38,174.86,174.77,12.42280538]
[1729776007216,4.38,174.86,174.83,2.8622]
[1729776008107,10.99111542,174.9,174.79,4.38]
[1729776008312,4.38,174.89,174.85,2.862]
[1729776008519,4.38,174.89,174.8,2.3931]
[1729776008740,2.8616,174.88,174.8,2.3931]
[1729776008906,4.38,174.89,174.85,2.8619]
[1729776009312,7.2414,174.89,174.85,2.8619]
[1729776009912,4.38,174.89,174.8,2.3931]
[1729776010112,4.38,174.89,174.86,2.8617]
[1729776010519,4.38,174.89,174.8,13.38421542]
[1729776010713,4.38,174.89,174.8,14.81553297]
[1729776010915,3.4348,174.97,174.8,14.81553297]
[1729776010916,4.38,174.91,174.8,14.81553297]
[1729776011116,4.38,174.91,174.81,1.43131755]
[1729776011423,7.241,174.91,174.86,2.8617]
[1729776011916,7.241,174.91,174.87,2.8616]
[1729776012124,4.38,174.91,174.81,1.43131755]
[1729776012314,2.8613,174.9,174.81,1.43131755]
[1729776012514,2.8613,174.9,174.85,2.8619]
[1729776013219,2.8613,174.9,174.86,2.8618]
[1729776013821,4.38,174.91,174.83,1.2457]
[1729776014018,7.241,174.91,174.83,1.2457]
[1729776014425,4.38,174.91,174.86,2.8617]
[1729776014625,4.38,174.91,174.83,2.67685103]
[1729776014626,7.241,174.91,174.83,1.2457]
[1729776014824,4.38,174.91,174.83,2.67685103]
[1729776015020,4.38,174.91,174.88,2.8614]
[1729776015224,4.38,174.91,174.84,5.81115103]
[1729776015523,15.37111542,174.94,174.85,10.99111542]
[1729776015830,12.27291542,174.97,174.85,12.42217901]
[1729776016017,4.38,174.95,174.88,2.8614]
[1729776016221,2.8606,174.94,174.88,2.8614]
[1729776016623,4.38,174.95,174.88,2.8614]
[1729776016828,2.8607,174.93,174.87,5.3232]
[1729776017125,10.99111542,174.94,174.84,4.38]
[1729776017325,10.99111542,174.94,174.85,1.43103923]
[1729776017516,4.38,174.95,174.83,1.2457]
[1729776017517,10.99111542,174.92,174.83,1.2457]
[1729776017722,4.38,174.91,174.84,1.43109692]
[1729776018018,4.38,174.91,174.83,1.2457]
[1729776018222,4.38,174.91,174.84,1.43114157]
[1729776018521,2.8609,174.92,174.86,2.8617]
[1729776018827,15.37111542,174.96,174.87,1.43099698]
[1729776019021,2.8606,174.94,174.88,2.8613]
[1729776019326,2.8606,174.94,174.85,15.37111542]
[1729776019531,15.37111542,174.96,174.86,1.43094461]
[1729776019828,10.99111542,174.94,174.87,1.43094461]
[1729776020127,10.99111542,174.94,174.85,4.38]
[1729776020326,10.99111542,174.94,174.86,1.43104094]
[1729776020526,2.8609,174.92,174.87,1.43104094]
[1729776020722,2.8609,174.92,174.88,1.43104094]
[1729776020915,2.8609,174.92,174.85,4.38]
[1729776020916,10.99111542,174.94,174.85,4.38]
[1729776021123,10.99111542,174.94,174.86,1.430878]
[1729776021428,2.8608,174.92,174.87,4.292478]
[1729776021630,2.8608,174.92,174.88,1.430878]
[1729776021928,2.8609,174.92,174.87,2.8616]
[1729776022129,2.8609,174.92,174.88,1.43084806]
[1729776022335,2.8609,174.92,174.87,2.8616]
[1729776022628,2.8609,174.92,174.88,1.43084793]
[1729776022826,2.8609,174.92,174.87,2.8616]
[1729776023016,2.8609,174.92,174.88,1.4308251]
[1729776023219,2.8609,174.92,174.87,2.8616]
[1729776023530,10.99111542,174.94,174.88,1.43081634]
[1729776023531,2.8613,174.9,174.88,1.43081634]
[1729776023825,15.37111542,174.91,174.86,1.43095748]
[1729776024030,15.37111542,174.91,174.83,1.2457]
[1729776024327,15.37111542,174.91,174.84,1.4311513]
[1729776024528,15.37111542,174.91,174.85,1.4311513]
[1729776024724,15.37111542,174.91,174.83,4.108]
[1729776024915,10.99111542,174.89,174.84,1.43118121]
[1729776025126,10.99111542,174.85,174.73,13.48781542]
[1729776025318,4.38,174.84,174.74,5.81145747]
[1729776025530,4.38,174.84,174.75,1.43145747]
[1729776025730,2.8628,174.8,174.76,1.43145747]
[1729776025920,4.38,174.84,174.77,1.43145747]
[1729776026226,4.38,174.84,174.78,1.43145747]
[1729776026430,2.8623,174.82,174.79,1.43145747]
[1729776026634,2.8623,174.82,174.8,1.43145747]
[1729776026930,2.8623,174.82,174.76,2.8631]
[1729776027125,2.8623,174.82,174.77,1.43155239]
[1729776027354,2.8623,174.82,174.78,1.43155239]
[1729776027517,2.8623,174.82,174.79,1.43155239]
[1729776027723,2.8623,174.82,174.8,1.43155239]
[1729776027923,4.38,174.84,174.81,1.43155239]
[1729776028130,15.37111542,174.87,174.82,1.43155239]
[1729776028429,2.8616,174.86,174.83,1.4313459]
[1729776028625,2.8616,174.86,174.8,2.8625]
[1729776028829,2.8616,174.86,174.81,1.43133254]
[1729776029036,2.8616,174.86,174.82,1.43133254]
[1729776029236,4.38,174.87,174.83,1.43133254]
[1729776029427,4.38,174.87,174.77,10.99111542]
[1729776029625,4.38,174.87,174.78,1.43134167]
[1729776029826,4.38,174.87,174.79,1.43134167]
[1729776030129,2.8616,174.86,174.81,2.8623]
[1729776030327,4.38,174.89,174.82,1.43134167]
[1729776030525,4.38,174.89,174.83,2.70574167]
[1729776030723,7.241,174.89,174.84,4.29304167]
[1729776030918,7.241,174.89,174.85,1.43134167]
[1729776031138,2.861,174.89,174.86,1.43134167]
[1729776031323,2.861,174.89,174.87,1.43134167]
[1729776031523,4.38,174.91,174.86,2.8614]
[1729776031524,7.2408,174.91,174.86,2.8614]
[1729776031723,4.38,174.91,174.87,1.43100373]
[1729776031933,4.38,174.91,174.86,2.8614]
[1729776032232,4.38,174.91,174.87,1.43100405]
[1729776032432,2.8609,174.9,174.85,2.8616]
[1729776032634,2.8609,174.9,174.86,1.43099442]
[1729776032833,2.8609,174.9,174.87,1.43099442]
[1729776033025,2.8609,174.9,174.85,2.8616]
[1729776033222,2.8609,174.9,174.86,1.43098833]
[1729776033427,2.8609,174.9,174.87,1.43098833]
[1729776033732,7.2409,174.91,174.86,2.8614]
[1729776033936,1.1633,174.95,174.87,1.43100116]
[1729776034135,5.5433,174.95,174.88,1.43100116]
[1729776034440,5.5433,174.95,174.9,2.8608]
[1729776034831,5.5433,174.95,174.84,10.99111542]
[1729776035135,5.5433,174.95,174.89,2.861]
[1729776035136,2.8604,174.93,174.89,2.861]
[1729776035936,2.8604,174.93,174.9,1.43074631]
[1729776036237,2.8604,174.93,174.89,2.861]
[1729776036830,2.8604,174.93,174.9,1.43071973]
[1729776037136,2.8604,174.93,174.89,2.861]
[1729776037337,2.8603,174.94,174.9,1.43069557]
[1729776037638,15.37111542,174.98,174.91,2.8606]
[1729776037830,2.8601,174.95,174.91,2.8606]
[1729776039541,2.8602,174.94,174.89,2.8609]
[1729776039930,2.8602,174.94,174.9,1.43066884]
[1729776040132,2.8602,174.94,174.9,2.8607]
[1729776040439,4.38,174.97,174.88,5.6663]
[1729776040640,4.38,174.97,174.89,1.43066514]
[1729776040835,4.38,174.97,174.92,2.8605]
[1729776041138,2.8597,174.97,174.92,2.8605]
[1729776041440,15.37111542,174.99,174.92,2.8605]
[1729776041938,15.37111542,174.99,174.89,12.4217238]
[1729776042135,4.38,174.99,174.9,1.43060838]
[1729776042340,4.38,174.99,174.94,2.8601]
[1729776042341,7.2395,174.99,174.94,2.8601]
[1729776042640,4.38,174.99,174.94,2.8601]
[1729776043243,2.8596,174.98,174.94,2.8601]
[1729776043942,4.38,174.99,174.9,1.2871]
[1729776044143,2.86,174.96,174.91,4.29111561]
[1729776044745,2.86,174.96,174.92,2.8605]
[1729776045843,2.8597,174.98,174.94,2.8601]
[1729776046148,15.37111542,175.02,174.92,1.43041561]
[1729776046485,2.8594,175.0,174.96,2.8597]
[1729776046637,15.37111542,175.02,174.96,2.8597]
[1729776046848,4.38,175.02,174.93,4.38]
[1729776047140,2.8593,175.0,174.93,4.38]
[1729776047640,15.37111542,175.02,174.92,1.43029105]
[1729776047834,15.37111542,175.02,174.92,4.38]
[1729776048344,15.37111542,175.02,174.93,2.8603]
[1729776048345,2.8599,174.97,174.93,2.8603]
[1729776049736,2.8599,174.97,174.94,2.8602]
[1729776051042,15.37111542,175.02,174.94,2.8602]
[1729776051242,15.37111542,175.02,174.92,4.38]
[1729776052952,2.8594,174.99,174.93,2.8603]
[1729776053250,15.37111542,175.02,174.93,2.8603]
[1729776053445,10.99111542,175.0,174.92,4.38]
[1729776053648,2.8597,174.97,174.93,2.8603]
[1729776054640,2.8599,174.96,174.92,2.8605]
[1729776055254,4.38,174.98,174.9,2.71744276]
[1729776055457,2.8603,174.94,174.9,4.1479]
[1729776055649,2.8603,174.94,174.9,1.2871]
[1729776055948,10.99111542,174.97,174.9,1.2871]
[1729776056152,2.8602,174.95,174.91,2.8606]
[1729776056345,10.99111542,174.97,174.91,2.8606]
[1729776056541,10.99111542,174.97,174.9,1.2871]
[1729776057252,10.99111542,174.97,174.87,7.06974276]
[1729776057957,2.8605,174.93,174.89,2.861]
[1729776058151,1.1733,174.99,174.88,10.99111542]
[1729776058350,4.38,174.98,174.88,12.42145818]
[1729776058551,4.38,174.98,174.92,2.8604]
[1729776058552,2.86,174.96,174.92,2.8604]
[1729776058957,2.8605,174.93,174.89,4.0269]
[1729776059752,2.8605,174.93,174.9,2.8609]
[1729776059950,2.8605,174.93,174.87,5.81034276]
[1729776060150,10.99111542,174.97,174.87,4.38]
[1729776060351,10.99111542,174.97,174.9,2.8608]
[1729776060562,10.99111542,174.97,174.87,4.38]
[1729776060751,2.8603,174.94,174.91,2.8607]
[1729776062654,10.99111542,174.97,174.87,5.81043784]
[1729776062655,2.8605,174.93,174.87,5.81043784]
[1729776062854,10.99111542,174.95,174.87,5.81043784]
[1729776063054,10.99111542,174.95,174.87,4.38]
[1729776063352,2.8605,174.93,174.88,1.43043784]
[1729776063557,2.8605,174.93,174.85,5.81043784]
[1729776063760,2.8605,174.93,174.86,1.43043784]
[1729776063957,2.8605,174.93,174.9,2.8609]
[1729776064164,2.8606,174.92,174.9,2.8609]
[1729776065557,10.99111542,174.98,174.87,1.4304667]
[1729776065763,2.8603,174.94,174.91,2.8606]
[1729776065953,2.8603,174.94,174.87,1.4304667]
[1729776066149,2.8603,174.94,174.89,2.8609]
[1729776066354,2.8603,174.94,174.87,1.4304667]
[1729776066563,10.99111542,174.98,174.88,12.42158212]
[1729776066564,2.8601,174.95,174.88,12.42158212]
[1729776066759,2.8601,174.95,174.89,5.8104667]
[1729776067060,2.8601,174.95,174.93,2.8603]
[1729776067253,2.8599,174.96,174.89,7.0247667]
[1729776067457,5.5533,174.99,174.9,1.4304667]
[1729776067661,2.8601,174.95,174.91,1.4304667]
[1729776067960,5.5533,174.99,174.9,1.43035812]
[1729776068155,5.5533,174.99,174.93,2.8603]
[1729776068360,2.86,174.96,174.93,2.8603]
[1729776070364,2.86,174.96,174.94,2.8602]
[1729776071560,1.2624,175.02,174.91,10.99111542]
[1729776071863,5.6424,175.02,174.92,1.43023349]
[1729776072060,5.6424,175.02,174.93,4.38]
[1729776072364,10.99111542,175.01,174.93,4.38]
[1729776072753,10.99111542,175.01,174.92,1.43023349]
[1729776072952,10.99111542,174.99,174.91,1.2193]
[1729776073156,4.38,174.98,174.91,1.2193]
[1729776073566,2.8599,174.96,174.92,2.8605]
[1729776074268,4.38,174.98,174.91,1.2193]
[1729776074461,2.8602,174.95,174.92,2.8605]
[1729776074656,2.8602,174.95,174.91,1.2193]
[1729776074861,2.8603,174.94,174.91,2.8607]
[1729776077260,2.8603,174.94,174.92,2.8605]
[1729776077565,2.8601,174.95,174.92,2.8605]
[1729776079365,4.38,174.98,174.91,1.43035915]
[1729776079571,2.8596,174.98,174.95,2.86]
[1729776080373,2.8594,175.0,174.97,2.8596]
[1729776081073,7.2391,175.01,174.97,2.8596]
[1729776081668,1.2624,175.02,174.94,1.43035915]
[1729776081871,5.6424,175.02,174.95,1.43035915]
[1729776082068,10.99111542,175.01,174.94,1.43035915]
[1729776082471,2.8595,174.99,174.95,2.86]
[1729776083574,2.8593,175.0,174.96,2.8598]
[1729776083774,10.99111542,175.01,174.94,1.43035915]
[1729776084469,2.8595,174.99,174.95,2.86]
[1729776084673,2.8595,174.99,174.94,1.43035915]
[1729776084866,2.8595,174.99,174.96,2.8598]
[1729776085669,2.8593,175.0,174.97,2.8596]
[1729776086171,4.38,175.02,174.97,2.8596]
[1729776086375,4.38,175.02,175.0,2.8592]
[1729776086567,1.2646,175.05,174.95,12.42147457]
[1729776086762,1.2646,175.05,174.96,5.81035915]
[1729776086971,4.38,175.06,175.02,2.8588]
[1729776087171,4.38,175.08,174.98,1.43035915]
[1729776087373,2.8583,175.06,174.98,1.43035915]
[1729776087673,4.38,175.08,174.98,1.43035915]
[1729776088277,2.8585,175.05,175.01,2.8589]
[1729776089872,10.99111542,175.09,174.98,1.42982333]
[1729776090075,4.38,175.08,174.98,1.42982333]
[1729776090277,2.8583,175.06,175.02,2.8588]
[1729776091875,7.238,175.08,175.04,2.8585]
[1729776092073,4.38,175.08,175.04,2.8585]
[1729776092273,4.38,175.08,174.98,2.61402333]
[1729776092274,1.2646,175.1,175.0,15.37111542]
[1729776092475,1.2646,175.1,175.05,2.8583]
[1729776092476,2.8579,175.09,175.05,2.8583]
[1729776092979,5.6446,175.1,175.01,1.42982333]
[1729776093175,2.8586,175.04,175.01,2.8591]
[1729776093374,10.99111542,175.09,175.01,2.8591]
[1729776093571,10.99111542,175.09,174.98,1.1842]
[1729776094773,10.99111542,175.07,174.98,1.1842]
[1729776095277,10.99111542,175.07,174.98,2.61379393]
[1729776095483,2.8585,175.05,175.01,2.859]
[1729776096073,4.38,175.06,174.98,1.1842]
[1729776096272,4.38,175.06,174.99,1.42965445]
[1729776096977,7.2384,175.06,175.02,2.8588]
[1729776097187,7.2384,175.06,174.99,1.42965445]
[1729776097484,7.2384,175.06,175.04,2.8586]
[1729776097485,4.38,175.06,175.04,2.8586]
[1729776097680,2.8581,175.07,175.04,2.8586]
[1729776098273,15.37111542,175.09,175.04,2.8586]
[1729776098474,15.37111542,175.09,174.99,1.42965445]
[1729776098685,15.37111542,175.09,175.02,2.8588]
[1729776099381,2.8584,175.06,175.02,2.8588]
[1729776099882,2.8584,175.06,175.02,4.28845445]
[1729776100085,2.8584,175.06,175.02,2.8588]
[1729776101783,2.8584,175.06,175.01,1.42951368]
[1729776101982,15.37111542,175.09,174.99,1.42951368]
[1729776102181,15.37111542,175.09,175.0,1.42951368]
[1729776102378,11.40880142,175.09,175.03,7.02880142]
[1729776102577,2.858,175.08,175.05,2.8583]
[1729776102980,11.40880142,175.09,175.05,2.8583]
[1729776103174,14.26660142,175.09,175.05,2.8583]
[1729776104287,7.02880142,175.07,175.05,2.8583]
[1729776104487,7.02880142,175.07,175.02,1.42951368]
[1729776105381,7.02880142,175.07,175.01,8.21620142]
[1729776105382,8.25520142,175.13,175.06,7.02880142]
[1729776105588,4.38,175.12,175.06,7.02880142]
[1729776106080,8.25520142,175.13,175.06,7.02880142]
[1729776106081,7.02880142,175.13,175.06,7.02880142]
[1729776106283,4.38,175.14,175.07,2.858]
[1729776106878,2.8573,175.12,175.07,2.858]
[1729776107082,4.38,175.14,175.07,2.858]
[1729776108383,2.8575,175.11,175.07,2.858]
[1729776108586,4.38,175.14,175.07,2.858]
[1729776108786,2.8575,175.11,175.07,2.858]
[1729776109689,15.35696842,175.14,175.02,12.16996842]
[1729776109885,15.35696842,175.14,175.03,1.42928715]
[1729776110097,10.97696842,175.11,175.02,1.42928715]
[1729776110293,2.858,175.08,175.04,2.8586]
[1729776111285,2.8583,175.06,175.01,1.42944278]
[1729776111486,5.5842,175.1,174.99,10.97696842]
[1729776111790,5.5842,175.1,175.0,1.42950967]
[1729776112494,2.858,175.08,175.0,1.42950967]
[1729776112991,2.858,175.08,175.04,2.8585]
[1729776113192,2.8579,175.09,175.0,1.42950967]
[1729776113494,5.5842,175.1,175.05,2.8584]
[1729776114392,5.5842,175.1,175.0,1.42950967]
[1729776114994,5.5842,175.1,175.01,1.42950967]
[1729776115192,5.5842,175.1,175.0,1.42950967]
[1729776115696,5.5842,175.1,175.01,2.69230967]
[1729776115887,2.8578,175.09,175.05,2.8583]
[1729776116393,2.92913583,175.19,175.02,5.80950967]
[1729776116394,4.38,175.14,175.02,5.80950967]
[1729776116794,2.8575,175.11,175.07,2.858]
[1729776117093,10.97696842,175.19,175.06,15.35696842]
[1729776117298,2.8568,175.15,175.11,2.8573]
[1729776118294,2.8567,175.16,175.11,2.8573]
[1729776118694,4.38,175.18,175.07,4.38]
[1729776118888,4.38,175.18,175.12,2.8572]
[1729776118889,2.8567,175.16,175.12,2.8572]
[1729776119096,4.38,175.18,175.12,2.8572]
[1729776119487,2.8567,175.16,175.11,2.8573]
[1729776120096,4.38,175.18,175.11,2.8573]
[1729776120297,2.8568,175.15,175.11,2.8573]
[1729776120795,4.38,175.18,175.08,1.2038]
[1729776121583,2.8568,175.15,175.08,1.2038]
[1729776121783,4.38,175.18,175.08,1.2038]
[1729776122388,2.8569,175.15,175.08,1.2038]
[1729776123490,2.8568,175.15,175.08,1.2038]
[1729776123894,2.857,175.14,175.1,2.8575]
[1729776124195,4.38,175.18,175.08,1.2038]
[1729776125993,2.8566,175.17,175.13,2.8571]
[1729776126199,10.97696842,175.37,175.11,4.38]
[1729776126398,5.6563,175.25,175.14,7.01910335]
[1729776126599,7.01910335,175.22,175.14,7.01910335]
[1729776127290,2.856,175.2,175.16,2.8565]
[1729776127604,7.01910335,175.21,175.16,7.01910335]
[1729776128494,9.87500335,175.21,175.17,2.8563]
[1729776128795,9.87500335,175.21,175.16,7.01910335]
[1729776129201,7.01910335,175.21,175.16,7.01910335]
[1729776129502,2.856,175.2,175.16,9.87560335]
[1729776130194,7.01910335,175.18,175.15,4.38]
[1729776130395,7.01910335,175.18,175.12,1.2558]
[1729776130396,7.01910335,175.18,175.13,7.01910335]
[1729776130597,7.01910335,175.18,175.13,11.39910335]
[1729776130806,7.01910335,175.18,175.15,2.8567]
[1729776131292,9.87540335,175.18,175.14,2.8569]
[1729776131695,7.01910335,175.18,175.13,4.38]
[1729776131891,7.01910335,175.17,175.08,1.2038]
[1729776132102,7.01910335,175.15,175.09,11.39910335]
[1729776132497,7.01910335,175.15,175.12,2.8572]
[1729776132696,4.38,175.2,175.11,7.01910335]
[1729776132901,4.38,175.2,175.13,7.01910335]
[1729776133102,2.8564,175.18,175.14,2.8568]
[1729776133303,2.8564,175.18,175.13,7.01910335]
[1729776133802,7.01910335,175.19,175.13,7.01910335]
[1729776133999,7.01910335,175.19,175.15,2.8567]
[1729776134200,7.01910335,175.19,175.09,4.38]
[1729776134201,7.01910335,175.16,175.09,4.38]
[1729776134503,2.8567,175.16,175.12,2.8573]
[1729776135504,10.97342023,175.19,175.14,2.8569]
[1729776135505,2.8565,175.17,175.14,2.8569]
[1729776135702,10.97342023,175.19,175.08,1.2038]
[1729776135903,10.97342023,175.16,175.09,4.38]
[1729776136092,2.8575,175.11,175.08,1.2038]
[1729776136292,15.35342023,175.16,175.08,1.2038]
[1729776136496,10.97342023,175.14,175.08,1.2038]
[1729776136696,10.97342023,175.14,175.06,7.2382]
[1729776136894,10.97342023,175.14,175.06,2.8582]
[1729776137096,2.8578,175.09,175.04,4.38]
[1729776137403,10.97342023,175.14,175.04,4.38]
[1729776137603,2.8574,175.11,175.04,4.38]
[1729776137801,10.97342023,175.14,175.06,2.8582]
[1729776138503,2.8573,175.12,175.06,2.8582]
[1729776138703,10.97342023,175.14,175.06,2.8582]
[1729776139102,2.8576,175.11,175.06,2.8582]
[1729776140208,10.97342023,175.14,175.03,5.602]
[1729776140600,10.97342023,175.14,175.03,7.0312559]
[1729776140912,1.2827,175.18,175.09,2.8578]
[1729776140913,2.8572,175.13,175.09,2.8578]
[1729776141409,4.38,175.15,175.07,4.38]
[1729776141710,15.35342023,175.21,175.07,15.35342023]
[1729776141906,4.38,175.2,175.08,1.2767]
[1729776142411,2.8565,175.17,175.13,2.8571]
[1729776143810,4.38,175.2,175.13,2.8571]
[1729776144109,10.97342023,175.23,175.11,4.38]
[1729776144308,10.97342023,175.23,175.12,1.2492]
[1729776144309,4.38,175.22,175.12,1.2492]
[1729776145410,2.8562,175.19,175.15,2.8567]
[1729776145708,4.38,175.22,175.12,1.2492]
[1729776145906,2.856,175.21,175.12,1.2492]
[1729776146109,4.38,175.22,175.16,2.8565]
[1729776146905,2.8561,175.2,175.16,2.8565]
[1729776148315,2.8558,175.22,175.17,2.8564]
[1729776148512,2.8558,175.22,175.15,10.97342023]
[1729776148712,2.8558,175.22,175.15,15.35342023]
[1729776149215,2.8558,175.22,175.17,2.8564]
[1729776149516,2.8559,175.21,175.17,2.8564]
[1729776150715,2.8557,175.22,175.17,2.8564]
[1729776151101,2.8557,175.22,175.15,15.35342023]
[1729776151308,2.8557,175.22,175.17,2.8564]
[1729776151608,2.8557,175.22,175.15,15.35342023]
[1729776151812,2.8557,175.22,175.17,2.8564]
[1729776152014,2.8557,175.22,175.15,15.35342023]
[1729776152515,2.8557,175.22,175.17,2.8564]
[1729776153411,2.8558,175.21,175.17,2.8564]
[1729776153806,10.97342023,175.23,175.15,4.38]
[1729776154006,2.8559,175.21,175.15,4.38]
[1729776154208,10.97342023,175.23,175.15,4.38]
[1729776154608,10.97342023,175.23,175.15,7.2367]
[1729776156313,2.8561,175.2,175.16,2.8565]
[1729776156515,10.97342023,175.23,175.15,4.38]
[1729776157211,2.8559,175.21,175.17,2.8565]
[1729776157622,10.97342023,175.23,175.15,4.38]
[1729776157913,2.8559,175.21,175.15,4.38]
[1729776158417,2.8559,175.21,175.17,2.8564]
[1729776159716,17.16,175.47,175.17,10.97342023]
[1729776159903,17.16,175.47,175.23,2.8554]
[1729776159904,10.97342023,175.32,175.23,2.8554]
[1729776160104,10.97342023,175.31,175.21,4.38]
[1729776160311,2.855,175.27,175.22,2.8556]
[1729776160504,10.97342023,175.28,175.21,4.38]
[1729776160711,10.97342023,175.28,175.2,5.64]
[1729776161313,2.8549,175.27,175.22,2.8555]
[1729776161910,10.97342023,175.28,175.16,1.2218]
[1729776162218,10.97342023,175.28,175.17,4.38]
[1729776162418,2.8555,175.24,175.18,2.8561]
[1729776162625,10.97342023,175.28,175.18,2.8561]
[1729776163015,2.8555,175.23,175.18,2.8561]
[1729776163417,2.8555,175.23,175.18,7.2361]
[1729776164310,2.8555,175.23,175.18,4.38]
[1729776164617,2.8555,175.23,175.19,2.8561]
[1729776165319,10.97342023,175.26,175.17,2.8565]
[1729776165525,12.14112023,175.26,175.17,4.38]
[1729776166016,2.8556,175.23,175.18,2.8562]
[1729776166412,12.14112023,175.26,175.17,4.38]
[1729776167319,2.8555,175.24,175.17,4.38]
[1729776167519,1.1677,175.26,175.17,4.38]
[1729776168215,4.38,175.27,175.17,4.38]
[1729776168420,2.8552,175.25,175.2,2.8559]
[1729776168815,10.97342023,175.28,175.2,2.8559]
[1729776169818,2.8553,175.25,175.2,2.8559]
[1729776170214,10.97342023,175.28,175.2,2.8559]
[1729776170415,2.8553,175.24,175.2,9.87824179]
[1729776171115,2.8553,175.24,175.2,7.02234179]
[1729776172519,7.02234179,175.24,175.19,4.38]
[1729776172718,7.02234179,175.22,175.18,4.38]
[1729776173126,2.8559,175.21,175.18,4.38]
[1729776173326,7.02234179,175.22,175.18,4.38]
[1729776174124,2.856,175.21,175.17,7.02234179]
[1729776174326,7.02234179,175.22,175.17,11.40234179]
[1729776174622,2.856,175.2,175.17,11.40234179]
[1729776175024,7.02234179,175.22,175.17,11.40234179]
[1729776175327,2.8559,175.21,175.17,11.40234179]
[1729776175528,10.0887,175.3,175.17,14.25874179]
[1729776175725,7.02234179,175.23,175.17,14.25874179]
[1729776175920,2.8557,175.22,175.17,11.40234179]
[1729776176120,2.8557,175.22,175.18,2.8563]
[1729776178129,2.8557,175.22,175.18,9.87864179]
[1729776178330,10.0887,175.3,175.18,7.02234179]
[1729776178526,2.8555,175.23,175.19,2.8561]
[1729776184031,7.02234179,175.26,175.18,7.02234179]
[1729776184232,2.8557,175.22,175.18,9.87864179]
[1729776184432,7.02234179,175.26,175.18,7.02234179]
[1729776184632,7.02234179,175.24,175.18,7.02234179]
[1729776185536,2.8558,175.22,175.18,7.02234179]
[1729776186035,2.8558,175.22,175.19,4.38]
[1729776188334,2.8551,175.26,175.22,2.8556]
[1729776188534,8.26214179,175.31,175.25,7.02234179]
[1729776188932,2.8545,175.3,175.25,7.02234179]
[1729776189133,5.7061,175.39,175.24,7.02234179]
[1729776189328,5.7061,175.39,175.28,7.02234179]
[1729776189329,7.02234179,175.33,175.28,7.02234179]
[1729776189530,2.8541,175.32,175.28,7.02234179]
[1729776190131,4.38,175.37,175.29,7.02234179]
[1729776190331,2.8536,175.35,175.31,7.02234179]